Cogmind - Beta 16 @@@ ROGUE MODE // 2026.01.04 @ 01:30:53 Player: Sooty Result: Destroyed by SM-3DT(R) with Subdweller Beam Cannon Performance ------------- Evolutions (0) 0 Regions Visited (2) 400 Robots Destroyed (1) 5 Value Destroyed (1) 1 Prototype IDs (0) 0 Alien Tech Used (0) 0 Bonus (0) 0 TOTAL SCORE: 406 Bonus ------- None Cogmind --------- Core Integrity 0/250 Matter 300/300 Energy 239/250 System Corruption 0% Temperature Cool (9) Movement Rolling (80) Location -10/Subcaves Parts ------- > --- POWER (1) -------- Ion Engine > --- PROPULSION (2) --- Aluminum Leg Wheel > --- UTILITY (2) ------ Improved Heat Sink > --- WEAPON (2) ------- (None) > --- INVENTORY (5) ---- (None) Peak State ------------ > --- POWER ------------ Light Ion Engine > --- PROPULSION ------- Aluminum Leg Aluminum Leg > --- UTILITY ---------- Medium Storage Unit Signal Interpreter > --- WEAPON ----------- EM Pulse Gun EM Pulse Gun > --- INVENTORY -------- Ion Engine Wheel Wheel Improved Heat Sink Hacking Suite Beam Cannon [Rating: 8] Favorites ----------- Power Light Ion Engine Engine Light Ion Engine Propulsion Aluminum Leg Leg Aluminum Leg Wheel Wheel Utility Signal Interpreter Device Improved Heat Sink Storage Medium Storage Unit Processor Signal Interpreter Protection Scrap Shield Weapon EM Pulse Gun Energy Gun EM Pulse Gun Energy Cannon Beam Cannon Build | -11 -10 -10 ------- Run | Yrd Mat Sub Slots Evolved . | . . . Power . | . . . Propulsion . | . . . Utility . | . . . Weapon . | . . . Parts Attached 16 | 6 3 7 Power 2 | 1 1 . Engine 2 | 1 1 . Core . | . . . Reactor . | . . . Propulsion 6 | 2 . 4 Treads . | . . . Leg 3 | 2 . 1 Wheel 3 | . . 3 Hover . | . . . Flight . | . . . Utility 5 | 1 2 2 Device 1 | . . 1 Storage 2 | 1 1 . Processor 1 | . 1 . Hackware . | . . . Protection 1 | . . 1 Artifact . | . . . Weapon 3 | 2 . 1 Energy Gun 2 | 2 . . Energy Cannon 1 | . . 1 Ballistic Gun . | . . . Ballistic Cannon . | . . . Launcher . | . . . Special Weapon . | . . . Impact Weapon . | . . . Slashing Weapon . | . . . Piercing Weapon . | . . . Special Melee Weapon . | . . . Unidentified Prototypes . | . . . Parts Lost 9 | . . 9 Power 1 | . . 1 Propulsion 4 | . . 4 Utility 1 | . . 1 Weapon 3 | . . 3 Highest Loss Streak 5 | . . 5 To Critical Strikes . | . . . Average Backups 3 | 1 3 4 Power . | . . . Propulsion 1 | . 2 1 Utility 1 | . . 2 Weapon . | . . . Tool/Special . | . . . Unused Backups 1 | . . 1 Power . | . . . Propulsion . | . . . Utility 1 | . . 1 Weapon . | . . . Tool/Special . | . . . Average Slot Usage (%) 87 | . 96 83 Engine 13 | . 14 13 Leg 19 | . 28 15 Wheel 5 | . . 8 Storage 12 | . 13 12 Processor 12 | . 12 12 Energy Gun 18 | . 28 13 Energy Cannon 3 | . . 5 Peak Build Rating 8 | 6 8 8 Average Rating 6 | 4 6 6 On Entrance 4 | . 6 8 Avg Prop Armor Cover (%) . | . . . Naked Turns . | . . . Heaviest Build 23 | 14 19 23 Greatest Support 20 | 20 20 20 Greatest Overweight (x) 5 | . . 5 Average Overweight (x) . | . . . Largest Inventory Capacity 10 | 8 10 10 Average Capacity 8 | 6 8 9 Most Carried 8 | 3 6 8 Average Carried 4 | 1 3 6 Final Capacity 10 | 8 10 5 Final Carried 6 | 2 6 . Class Distribution -------------------- 100% | Mutant Dominant Class ---------------- Mutant | -10/Materials Mutant | -10/Subcaves Resources | -11 -10 -10 ----------- Run | Yrd Mat Sub Matter Collected 335 | 260 30 45 Remotely . | . . . Salvage Created 17 | . 17 . Parts 4 | . 4 . Haulers Intercepted . | . . . Recyclers Shooed . | . . . Parts Field Recycled . | . . . Retrieved Matter . | . . . Parts Self-Destructed 9 | . . 9 Prevented . | . . . Parts Restored . | . . . Kills | -11 -10 -10 ------- Run | Yrd Mat Sub Combat Hostiles Destroyed . | . . . Classes Destroyed 1 | . 1 . Worker 1 | . 1 . Best Kill Streak 1 | . 1 . Combat Bots Only . | . . . Max Kills in Single Turn 1 | . 1 . Gunslinging . | . . . Exploded . | . . . Melee . | . . . Uniques/NPCs Destroyed . | . . . Combat | -11 -10 -10 -------- Run | Yrd Mat Sub Hostile Shots Fired 64 | . 13 51 Missed 14 | . 3 11 Hits 50 | . 10 40 Projectile 50 | . 10 40 Critical Strikes 2 | . . 2 Damage Taken 1114 | . 72 1042 Core 250 | . 7 243 Absorbed by Shields . | . . . Core Remaining (%) 100 | 100 . . Volleys Fired 26 | . 5 21 Largest 2 | . 2 2 Hottest 80 | . 80 80 Shots Fired 35 | . 10 25 Gun 19 | . 10 9 Cannon 16 | . . 16 Launcher . | . . . Special . | . . . Kinetic . | . . . Thermal 16 | . . 16 Explosive . | . . . Electromagnetic 19 | . 10 9 Robot Hit Streak 9 | . 1 9 Robot Miss Streak 4 | . 4 3 Penetration Max . | . . . Secondary Targets . | . . . Shots Hit Robots 20 | . 2 18 Core Hits 2 | . 1 1 Critical Kills . | . . . Critical Parts Destroyed . | . . . Critical Strikes . | . . . Melee Attacks . | . . . Impact . | . . . Slashing . | . . . Piercing . | . . . Sneak Attacks . | . . . Combat Hostiles . | . . . Follow-up Attacks . | . . . Damage Inflicted 168 | . 52 116 Guns 103 | . 49 54 Cannons 54 | . . 54 Explosions . | . . . Melee . | . . . Ramming 11 | . 3 8 Kinetic . | . . . Thermal 54 | . . 54 Explosive . | . . . Electromagnetic 103 | . 49 54 Impact . | . . . Slashing . | . . . Piercing . | . . . Highest Corruption . | . . . Average Corruption . | . . . Corruption Purged . | . . . Corruption Blocked . | . . . Overload Shots . | . . . Overflow Damage . | . . . Projectiles . | . . . Explosions . | . . . Melee . | . . . Knockbacks 1 | . . 1 Impact 1 | . . 1 Kinetic . | . . . Secondary . | . . . Self-Inflicted Damage . | . . . Shots . | . . . Rammed . | . . . Targets Rammed 9 | . 1 8 Kicked 9 | . 1 8 Crushed . | . . . Highest Temperature 269 | . 36 269 Average Temperature 81 | . 19 162 Received Heat Transfer 525 | . . 525 Effects 1 | . . 1 Interference 1 | . . 1 Siege Activations . | . . . Martial Activations . | . . . Shielding Activations . | . . . Robots Disrupted . | . . . Combat Hostiles . | . . . Robots Corrupted . | . . . Combat Hostiles . | . . . Parts Fried . | . . . Impact Corruptions . | . . . Robots Melted . | . . . Combat Hostiles . | . . . Parts Melted . | . . . Heat Transferred 111 | . . 111 Parts Sabotaged . | . . . Parts Stolen . | . . . Parts Stripped . | . . . Power Chain Reactions . | . . . Alert | -11 -10 -10 ------- Run | Yrd Mat Sub Maximum Alert Level . | . . . Low Security (%) 100 | 100 100 . Level 1 . | . . . Level 2 . | . . . Level 3 . | . . . Level 4 . | . . . Level 5 . | . . . High Security . | . . . Max Security . | . . . Peak Influence 15 | . 15 . Initial . | . . . Average 1 | . 2 . Influence Increases 20 | . 20 . Destroy 0b10 Robot/NC 5 | . 5 . Lose Combat Pursuer 15 | . 15 . Influence Decreases 20 | . 20 . Time Decay 20 | . 20 . Squads Dispatched . | . . . Investigation . | . . . Extermination . | . . . Reinforcement . | . . . Assault . | . . . Garrison . | . . . Intercept . | . . . Searches Triggered . | . . . Construction Impeded . | . . . Haulers Reinforced . | . . . Active Scanning Responses . | . . . Cargo Convoy Interrupts . | . . . Stealth | -11 -10 -10 --------- Run | Yrd Mat Sub Distress Signals 2 | . 2 . Communications Jammed . | . . . Distress Signals . | . . . Times Spotted 13 | . 9 4 Peak Tracking Total 6 | . 6 2 Tactical Retreats 2 | . 1 1 Traps | -11 -10 -10 ------- Run | Yrd Mat Sub Traps Triggered . | . . . Indirectly . | . . . Trap Hack Attempts . | . . . Triggered . | . . . Disarmed . | . . . Reprogrammed . | . . . Reused . | . . . Traps Extracted . | . . . Installed . | . . . Triggered . | . . . Machines | -11 -10 -10 ---------- Run | Yrd Mat Sub Machines Disabled . | . . . Max in Single Turn . | . . . Machines Repaired . | . . . Machines Dismantled . | . . . Machines Sabotaged . | . . . Overloaded Fab Kills . | . . . Hacking | -11 -10 -10 --------- Run | Yrd Mat Sub Machines Accessed . | . . . Terminals . | . . . Fabricators . | . . . Repair Stations . | . . . Recycling Units . | . . . Scanalyzers . | . . . Garrison Access . | . . . Total Hacks . | . . . Successful . | . . . Failed . | . . . Catastrophic . | . . . Database Lockouts . | . . . Manual . | . . . Terminals . | . . . Fabricators . | . . . Repair Stations . | . . . Recycling Units . | . . . Scanalyzers . | . . . Garrison Access . | . . . Terminal Hacks . | . . . Fabricator Hacks . | . . . Repair Station Hacks . | . . . Recycling Unit Hacks . | . . . Scanalyzer . | . . . Garrison Access Hacks . | . . . Unauthorized Hacks . | . . . Terminals . | . . . Fabricators . | . . . Repair Stations . | . . . Recycling Units . | . . . Scanalyzers . | . . . Garrison Access . | . . . Data Cores Recovered 1 | . 1 . Used . | . . . Hacking Detections . | . . . Full Trace Events . | . . . Feedback Events . | . . . Feedback Blocked . | . . . Robot Schematics Acquired . | . . . Robots Built . | . . . Authchips . | . . . Time . | . . . Total Robot Build Rating . | . . . Part Schematics Acquired . | . . . Parts Built . | . . . Authchips . | . . . Time . | . . . Total Part Build Rating . | . . . Part Studies Acquired . | . . . Parts Repaired . | . . . Time . | . . . Parts Recycled . | . . . Recycled Matter . | . . . Retrieved Matter . | . . . Retrieved Components . | . . . Parts Scanalyzed . | . . . Part Schematics Acquired . | . . . Parts Damaged . | . . . Bothacking | -11 -10 -10 ------------ Run | Yrd Mat Sub Used RIF Installer . | . . . Robots Hacked . | . . . Non-combat . | . . . Combat . | . . . Robot Hacks Applied . | . . . Relay Couplers Released . | . . . Fabnet Peak Effective % . | . . . Robots Rewired . | . . . Allies Hacked . | . . . Hacks Repelled . | . . . Allies | -11 -10 -10 -------- Run | Yrd Mat Sub Total Allies . | . . . Largest Group . | . . . Highest-Rated Group . | . . . Highest-Rated Ally . | . . . Total Orders . | . . . Ally Attacks . | . . . Total Damage . | . . . Kills . | . . . Allies Corrupted . | . . . Allies Melted . | . . . Intel | -11 -10 -10 ------- Run | Yrd Mat Sub Active Infowar (turns) . | . . . Robot Analysis Total . | . . . Derelict Logs Recovered 1 | . . 1 Drone Launches . | . . . Drone Recoveries . | . . . Exploration | -11 -10 -10 ------------- Run | Yrd Mat Sub Turns Passed 473 | 59 138 276 Spaces Moved 301 | 43 87 171 Core 9 | 8 . 1 Treads . | . . . Legs 210 | 35 87 88 Wheels 82 | . . 82 Hover . | . . . Flight . | . . . Fastest Speed 50 | 50 120 80 Average Speed 110 | 106 120 106 Slowest Speed 300 | 120 120 300 Overloaded Moves . | . . . Propulsion Burnouts . | . . . Robots Hopped . | . . . Potential Cave-ins . | . . . Cave-ins Triggered . | . . . Exploration Rate (%) 13 | 3 22 14 Regions Visited 2 Branch Regions 1 Pre-discovered Areas 1 | . . 1 Known Exits Taken 1 | . 1 . Unknown Exits Taken 1 | 1 . . Scrap Searched . | . . . Spaces Dug . | . . . Terrain Destroyed . | . . . Melee . | . . . Projectile . | . . . AOE . | . . . Terrain Rammed . | . . . Walls Destroyed . | . . . Machines Disabled . | . . . Actions | -11 -10 -10 --------- Run | Yrd Mat Sub Total 401 | 56 110 235 Wait 19 | . 8 11 Move 299 | 42 86 171 Hop . | . . . Pick Up 21 | 8 6 7 Fast Attach . | . . . Attach 16 | 6 2 8 Detach . | . . . Swap 1 | . 1 . Drop 8 | . 1 7 Fire 26 | . 5 21 Melee . | . . . Ram . | . . . Kick 9 | . 1 8 Crush . | . . . Escape Stasis . | . . . Rewire . | . . . Trap . | . . . Miscellaneous 2 | . . 2 Route ------- -11/Scrapyard -10/Materials (discovered 2 exits: [*Min] / *Sub) -10/Subcaves (discovered 1 exit: [Scr]) History --------- Turn | Location | Event 6 | -11/Scrapyard | Discovered new exit (range 16) 60 | -11/Scrapyard | Entered Materials 61 | -10/Materials | Met a group of wandering Federalists 168 | -10/Materials | Discovered new exit (range 9) 173 | -10/Materials | Lost 3 allies 194 | -10/Materials | Discovered new exit (range 5) 197 | -10/Materials | Identified exit to Subcaves 198 | -10/Materials | Entered Subcaves 199 | -10/Subcaves | Continued accompanying wandering Federalists (2) 199 | -10/Subcaves | Approached by a straggling Scientist 208 | -10/Subcaves | Learned location of Zion (-7) 301 | -10/Subcaves | Ambushed by Subdwellers from Twisted Machinery 306 | -10/Subcaves | Build established: Mutant 361 | -10/Subcaves | Lost 4 parts (2n2w) 429 | -10/Subcaves | Core integrity fell below 50% 473 | -10/Subcaves | Core integrity fell below 20% 474 | -10/Subcaves | Destroyed by SM-3DT(R) with Subdweller Beam Cannon Last Messages --------------- 00449_ Dropped Scrap Shield Fragment. 00449_ NP-KQD(c) destroyed. 00450_ Scrap Shield Fragment affixed to Scrap Shield (+47). [Achievement: Survival Of The Most Covered] 00451_ Dropped Scrap Shield Fragment. 00451_ Scrap Shield Fragment affixed to Scrap Shield (+49). 00452_ Kicked SM-3DT(R). 00455_ SM-3DT(R) knocked back. 00457_ Kicked SM-3DT(R). 00462_ Scrap Shield destroyed. 00462_ Kicked SM-3DT(R). 00468_ Acquired Wheel. 00469_ SM-3DT(R) affixes Scrap Shield Fragment to Scrap Shield. 00470_ Acquired 10 matter. 00472_ Tech Extrapolator violently self-destructs. 00474_ Acquired 10 matter. Map ----- +----------------------------------------------------+ | ?????????????????????????????????????????????????? | | ?????????????????????????????????????????????????? | | ?????????????????????????????????????????????????? | | ?????????????????????????????????????????????????? | | ??????????#############?????????????######???????? | | ?????????## =[# # ############?? #???????? | | ??????#### & %&! #??# ????????? | | ?????## *## #??## #????????? | | ????## ### # ##?# ""##???????? | | ???## ##### "###"" !*&###"""""##??????? | | ### [ ##?#" "#?## "## &%"###" #??????? | | =%! #?#""##??#"######!*["" ##?????? | | = ##?# #???###????##% # #####?? | | ###?? "???????????#&& ## ## #?? | | #### ##???" "??????????## #?? | | ???# ###???#""" "?????????## #?? | | #### ##???? "###""???????# # #### # ###?? | | # #???? ???#"???????# ####??#####???? | | #???## ??##"???###?# ##????????????? | | ###?#??#?#### "??## #?# #????????????? | | ### ### ### #?# #????????????? | | ## " """#?##!&= #????????????? | | " " "#####%! #????????????? | | " !%"R "###& #????????????? | | # ## !! "" # ##????????????? | | # ### """"" ;; @ ##?????????????? | | # #?????""""""""##%* #??????????????? | | #### #??? ##"## % # # # #??????????????? | | #?## #? ## ??##?#; ###### #??????????????? | | #???######????#??????######????###??????????????? | | ##???????????????????????????????????????????????? | | #????????????????????????????????????????????????? | | ?????????????????????????????????????????????????? | | ?????????????????????????????????????????????????? | | ?????????????????????????????????????????????????? | | ?????????????????????????????????????????????????? | | ?????????????????????????????????????????????????? | | #????????????????????????????????????????????????? | | #????????????????????????????????????????????????? | | ?????????????????????????????????????????????????? | | ?????????????????????????????????????????????????? | | #????????????????????????????????????????????????? | | ##???????????????????????????????????????????????? | | #???????????????????????????????????????????????? | | #???????????????????????????????????????????????? | | #??????????????????????????????????????????????? | | #??????????????????????????????????????????????? | | #??????????????????????????????????????????????? | | #??????????????????????????????????????????????? | | ##??????????????????????????????????????????????? | +----------------------------------------------------+ Best States ------------- Heat Dissipation 25 Energy Generation 10 Energy Capacity 250 Matter Stores 300 Matter Capacity 300 Sight Range 16 Terrain Scan Density 10 Armor Coverage 800 Evasion (%) 55 Item Schematics ----------------- None Robot Schematics ------------------ None Fabricated ------------ Nothing Repaired ---------- Nothing Studied --------- None Alien Tech Used ----------------- None Achievements -------------- Strength In Numbers Survival Of The Most Covered Challenges ------------ None Game ------ Seed SmallPointyCloak Manual? 0 Play Time 00:11:33 Cumulative 35.4 hours Start 2026.01.04 @ 01:20:27 End 2026.01.04 @ 01:30:53 Sessions 1 Manual Loads 0 Difficulty Rogue Special Mode None Game No. 39 Rogue 39 Adventurer 0 Explorer 0 Win Type - Total 0 Types 0/0/0/0/0/0/0/0/0/0 Lore% 14 Gallery% 26 Achievement% 18 Wizard Run 0 Options --------- Layout 1 ASCII 0 Keyboard 0 Movement Mouse Keybinds 0 Fullscreen 1 Font 24/Terminus Map View 50x35 Zoom Use 0% Tactical HUD 1 Map Filters NONE Filters NONE Steam 1 RUN: 7a55291d-c866-471c-8bd3-5cb05a87d33c